Cogmind - Beta 17 @@@ ROGUE MODE // 2026.07.20 @ 02:19:43 Player: TheSkyeDoctor Result: Destroyed by G-67 Veteran with Plasma Rifle Performance ------------- Evolutions (6) 3000 Regions Visited (12) 2400 Robots Destroyed (66) 330 Value Destroyed (3062) 3062 Prototype IDs (26) 520 Alien Tech Used (0) 0 Bonus (1851) 1851 TOTAL SCORE: 11163 Bonus ------- Follower Combat Kills 74 Registered with UFD 300 Met Optimus in HQ 500 Met Warlord at Base 500 MAIN.C Attacked Warlord 500 Friendly Fire -23 Cogmind --------- Core Integrity 0/1150 Matter 237/300 Energy 69/100 System Corruption 11% Temperature Cool (0) Movement Core (50) Location -4/Upper Caves Parts ------- > --- POWER (2) -------- (None) > --- PROPULSION (5) --- (None) > --- UTILITY (8) ------ Advanced Targeting Computer Mapping Drone Bay (1/3) > --- WEAPON (4) ------- (None) > --- INVENTORY (5) ---- Angular Momentum Engine Energy Well (350) High-capacity Matter Pod (200) Improved Plasma Cutter Peak State ------------ > --- POWER ------------ Backup Power III Zero-point Reactor > --- PROPULSION ------- Carbon-fiber Leg Carbon-fiber Leg Enhanced Flexi-carbon Leg Arachnoskeleton > --- UTILITY ---------- High-capacity Storage Unit Surveybot 17 Chip Advanced Targeting Computer Layered Heavy Armor Plating Experimental Focal Shield Advanced Remote Shield > --- WEAPON ----------- Gauss Rifle KE Penetrator Mass Driver Improved Plasma Cutter > --- INVENTORY -------- Light Angular Momentum Engine Vortex Chain Reactor Experimental Myomer Leg Experimental Myomer Leg Advanced Heat Sink Experimental Cooling System Energy Well High-capacity Matter Pod Improved Terrain Scanner Experimental Phase Shifter Layered Heavy Armor Plating Long-range Tractor Beam Mapping Drone Bay Minesniffer Drone Bay Improved Remote Datajack RU-N14's Throwing Claymores v3 RU-N14's Throwing Claymores v3 Heavy Flail [Rating: 123] Favorites ----------- Power Zero-point Reactor Engine Light Ion Engine Power Core Fission Core Reactor Zero-point Reactor Propulsion Carbon-fiber Leg Treads Light Treads Leg Carbon-fiber Leg Wheel Maxwheels Utility High-capacity Storage Unit Device Seismic Detector Storage High-capacity Storage Unit Processor Advanced Targeting Computer Protection Layered Heavy Armor Plating Weapon Heavy Flail Energy Gun Plasma Rifle Energy Cannon Subdweller Beam Cannon Ballistic Gun Assault Rifle Ballistic Cannon Mass Driver Launcher Subdweller Shrapnel Launcher Special Weapon Improved Plasma Cutter Impact Weapon Heavy Flail Build | -11 -10 -10 -8 -8 -6 -5 -5 -5 -5 -4 -4 -4 ------- Run | Yrd Mat Sub Rec Scr Fac Fac Upp Upp War Pro Fac Upp Slots Evolved 12 | . . . . . 8 2 . . . . 2 . Power 1 | . . . . . . 1 . . . . . . Propulsion 3 | . . . . . 2 . . . . . 1 . Utility 6 | . . . . . 4 1 . . . . 1 . Weapon 2 | . . . . . 2 . . . . . . . Parts Attached 75 | 8 . 4 . 4 5 16 1 9 7 14 6 1 Power 12 | 1 . 1 . 1 . 5 . . . 2 2 . Engine 5 | 1 . 1 . . . 1 . . . 1 1 . Core 5 | . . . . 1 . 3 . . . . 1 . Reactor 2 | . . . . . . 1 . . . 1 . . Propulsion 15 | 2 . 1 . 2 1 . . 5 . 3 1 . Treads 3 | 2 . . . 1 . . . . . . . . Leg 9 | . . . . . . . . 5 . 3 1 . Wheel 3 | . . 1 . 1 1 . . . . . . . Hover . | . . . . . . . . . . . . . Flight . | . . . . . . . . . . . . . Utility 23 | 3 . . . 1 2 4 . 2 5 3 2 1 Device 11 | 2 . . . . 1 1 . . 5 . 1 1 Storage 3 | 1 . . . 1 . . . . . 1 . . Processor 4 | . . . . . . 2 . 1 . . 1 . Hackware . | . . . . . . . . . . . . . Protection 5 | . . . . . 1 1 . 1 . 2 . . Artifact . | . . . . . . . . . . . . . Weapon 25 | 2 . 2 . . 2 7 1 2 2 6 1 . Energy Gun 3 | . . . . . 1 1 . . . . 1 . Energy Cannon 2 | . . 1 . . . . . . . 1 . . Ballistic Gun 10 | 2 . . . . . 3 1 1 . 3 . . Ballistic Cannon 4 | . . . . . . 2 . 1 . 1 . . Launcher 2 | . . 1 . . 1 . . . . . . . Special Weapon 3 | . . . . . . . . . 2 1 . . Impact Weapon 1 | . . . . . . 1 . . . . . . Slashing Weapon . | . . . . . . . . . . . . . Piercing Weapon . | . . . . . . . . . . . . . Special Melee Weapon . | . . . . . . . . . . . . . Unidentified Prototypes 12 | . . . . . . 3 . 1 6 2 . . Corrupted Parts 3 | . . . . . . . . 2 . 1 . . System Corruption 22 | . . . . . . . . 15 . 7 . . Parts Lost 52 | . . 5 . . 1 6 1 7 1 14 15 2 Power 8 | . . 1 . . . 2 . 1 . 3 1 . Propulsion 12 | . . 2 . . . . . 2 . 4 4 . Utility 14 | . . . . . . 1 . 2 . 3 6 2 Weapon 18 | . . 2 . . 1 3 1 2 1 4 4 . Highest Loss Streak 15 | . . 3 . . 1 2 1 2 1 4 15 2 To Critical Strikes 3 | . . . . . . 1 . . . 1 1 . Average Backups 9 | 2 3 3 3 6 9 14 14 10 14 12 9 4 Power . | . 1 . . . 1 . . 1 1 . 1 1 Propulsion 1 | . 1 1 2 2 3 3 3 1 1 1 . . Utility 4 | . 1 1 1 3 4 7 7 6 8 8 6 2 Weapon . | . . . . . 1 1 1 . 1 . . . Tool/Special . | . . . . . . . . . . . . . Unused Backups 4 | . . 2 . . . . . . . . 1 1 Power . | . . . . . . . . . . . . . Propulsion 1 | . . 1 . . . . . . . . . . Utility 1 | . . . . . . . . . . . . 1 Weapon 1 | . . 1 . . . . . . . . . . Tool/Special 1 | . . . . . . . . . . . 1 . Average Slot Usage (%) 76 | . 100 84 85 89 53 64 73 74 82 69 75 11 Engine 4 | . 14 14 14 1 . 2 . . 4 2 . . Core 3 | . . . . 12 5 6 5 3 . . . . Reactor 2 | . . . . . . . 5 5 5 5 4 . Treads 3 | . 28 15 . 2 . . . . . . . . Leg 6 | . . . . . . . . 22 21 12 15 . Wheel 4 | . . 2 14 15 4 5 5 . . . . . Device 12 | . 14 14 14 14 10 13 10 8 9 10 12 . Storage 8 | . 14 14 14 14 5 5 5 5 5 7 8 . Processor 4 | . . . . . . 1 5 8 10 10 10 11 Protection 2 | . . . . . 4 4 5 5 5 3 3 . Energy Gun 2 | . . . . . 3 7 15 . . . 3 . Energy Cannon 4 | . . 8 14 14 5 1 3 . . . 3 . Ballistic Gun 6 | . 28 11 . . . 3 6 6 9 6 4 . Ballistic Cannon 2 | . . . . . . 5 . 4 4 1 4 . Launcher 3 | . . 3 14 14 9 1 . . . . . . Impact Weapon 2 | . . . . . . 4 5 5 3 3 . . Peak Build Rating 123 | 9 7 14 14 22 73 112 116 116 123 115 117 17 Average Rating 63 | 5 7 10 14 19 70 97 113 97 111 94 101 12 On Entrance 52 | . 7 7 14 14 22 70 111 116 98 107 102 17 Avg Prop Armor Cover (%) 10 | . . . . 13 . . . 2 . . . . Naked Turns . | . . . . . . . . . . . . . Heaviest Build 124 | 15 15 25 25 67 96 124 117 114 110 111 117 3 Greatest Support 123 | 40 40 40 20 32 30 30 30 123 108 108 98 3 Greatest Overweight (x) 8 | . . 8 1 5 3 4 3 3 1 2 1 . Average Overweight (x) 1 | . . . 1 3 2 3 3 . . . . . Largest Inventory Capacity 20 | 8 8 8 8 20 20 20 20 20 20 20 20 5 Average Capacity 16 | 7 8 8 8 16 20 20 20 20 20 20 19 5 Most Carried 20 | 3 3 8 8 19 20 20 19 19 20 19 10 5 Average Carried 12 | 2 3 6 8 12 11 17 18 11 16 13 9 4 Final Capacity 20 | 8 8 8 8 20 20 20 20 20 20 20 5 5 Final Carried 19 | 3 3 8 8 19 11 18 19 10 19 9 5 4 Scrap Suit Usage (%) 20 | . . . . . 97 83 100 6 . . . . Parts Cannibalized 10 | . . . . . 1 6 2 1 . . . . Class Distribution -------------------- 57% | Mutant 14% | Executioner 11% | Tank 6% | Scavenger-Skirmisher 4% | Scavenger-Mutant 3% | Derelict-Tank Dominant Class ---------------- Mutant | -10/Materials Mutant | -10/Subcaves Mutant | -8/Recycling Mutant | -8/Scraptown Tank | -6/Factory Executioner | -5/Factory Executioner | -5/Upper Caves Scavenger-Mutant | -5/Upper Caves Tank | -5/Warlord Mutant | -4/Proximity Caves Derelict-Tank | -4/Factory Mutant | -4/Upper Caves Resources | -11 -10 -10 -8 -8 -6 -5 -5 -5 -5 -4 -4 -4 ----------- Run | Yrd Mat Sub Rec Scr Fac Fac Upp Upp War Pro Fac Upp Matter Collected 3293 | 328 . 212 . 210 17 792 430 529 107 450 184 34 Remotely . | . . . . . . . . . . . . . Salvage Created 2989 | 126 . 204 . . 114 1121 101 642 . 419 262 . Parts 131 | 6 . 12 . . 8 46 1 28 . 16 14 . Haulers Intercepted 2 | . . . . . . 2 . . . . . . Recyclers Shooed . | . . . . . . . . . . . . . Parts Field Recycled . | . . . . . . . . . . . . . Retrieved Matter . | . . . . . . . . . . . . . Parts Self-Destructed 42 | . . 11 . . . . 3 12 . 16 . . Prevented 6 | . . . . . . . . 4 . 2 . . Parts Restored . | . . . . . . . . . . . . . Kills | -11 -10 -10 -8 -8 -6 -5 -5 -5 -5 -4 -4 -4 ------- Run | Yrd Mat Sub Rec Scr Fac Fac Upp Upp War Pro Fac Upp Combat Hostiles Destroyed 54 | . . 5 . . 3 19 2 11 . 11 3 . Melee 5 | . . . . . . 2 . . . 3 . . Guns 24 | . . 2 . . 1 6 1 7 . 6 1 . Cannons 17 | . . 1 . . . 9 . 4 . 1 2 . AOE 5 | . . 2 . . 2 1 . . . . . . Classes Destroyed 15 | 3 . 3 . . 3 4 . . . . 2 . Worker 4 | 1 . . . . . 3 . . . . . . Builder 1 | . . . . . 1 . . . . . . . Tunneler 1 | 1 . . . . . . . . . . . . Hauler 2 | . . . . . . 2 . . . . . . Recycler 1 | 1 . . . . . . . . . . . . Turret 2 | . . 2 . . . . . . . . . . Watcher 1 | . . . . . . . . . . . 1 . Swarmer 10 | . . 1 . . . 4 . . . 5 . . Grunt 18 | . . . . . . 4 2 7 . 3 2 . Brawler 1 | . . . . . . 1 . . . . . . Duelist 1 | . . . . . . . . . . . 1 . Sentry 4 | . . . . . . 3 . . . 1 . . Hunter 8 | . . . . . 2 4 . . . 2 . . Programmer 4 | . . . . . 1 3 . . . . . . Subdweller 4 | . . 4 . . . . . . . . . . Decomposer 1 | . . . . . . . . 1 . . . . Thug 4 | . . . . . . . . 4 . . . . Best Kill Streak 6 | 1 . 3 . . 3 6 1 4 . 3 2 . Combat Bots Only 4 | . . 2 . . 2 4 1 4 . 3 2 . Max Kills in Single Turn 2 | 1 . 2 . . 2 2 1 1 . 1 1 . Gunslinging . | . . . . . . . . . . . . . Exploded 1 | . . 1 . . 1 1 . . . . . . Melee 1 | . . . . . . 1 . . . 1 . . Uniques/NPCs Destroyed . | . . . . . . . . . . . . . Combat | -11 -10 -10 -8 -8 -6 -5 -5 -5 -5 -4 -4 -4 -------- Run | Yrd Mat Sub Rec Scr Fac Fac Upp Upp War Pro Fac Upp Hostile Shots Fired 1131 | . . 49 . . 33 175 5 124 31 496 169 49 Missed 421 | . . 14 . . 6 38 2 36 6 241 63 15 Hits 710 | . . 35 . . 27 137 3 88 25 255 106 34 Melee 13 | . . . . . . . . . 10 . 2 1 Projectile 697 | . . 35 . . 27 137 3 88 15 255 104 33 Critical Strikes 30 | . . 2 . . 1 6 . 6 . 11 4 . Part Disruptions 1 | . . . . . . . . . . . 1 . Damage Taken 11573 | . . 986 . . 530 2196 80 1576 603 3014 1868 720 Core 1911 | . . 183 . . . 123 . 119 110 214 492 670 Absorbed by Shields 642 | . . . . . 12 . . . 178 452 . . Ignored by Resistances 1145 | . . . . . . . . . 107 1021 17 . Regen/Repaired (Parts) 418 | . . . . . 10 36 20 10 342 . . . Core Remaining (%) 67 | 100 . . . 26 100 . . . . 43 . . Volleys Fired 198 | 8 . 25 . . 7 41 4 31 2 66 14 . Largest 5 | 2 . 2 . . 4 5 5 5 3 2 4 . Hottest 310 | 40 . 120 . . 231 310 310 263 75 74 215 . Shots Fired 462 | 16 . 42 . . 21 127 20 88 6 96 46 . Gun 305 | 16 . 29 . . 2 80 16 60 2 76 24 . Cannon 128 | . . 8 . . 7 42 4 28 2 15 22 . Launcher 22 | . . 5 . . 12 5 . . . . . . Special 7 | . . . . . . . . . 2 5 . . Kinetic 333 | 16 . 34 . . 7 74 4 77 4 91 26 . Thermal 63 | . . 8 . . 9 34 9 3 . . . . Explosive 7 | . . . . . . . . . 2 5 . . Electromagnetic 59 | . . . . . 5 19 7 8 . . 20 . Robot Hit Streak 16 | 3 . 16 . . 3 13 4 6 4 9 9 . Robot Miss Streak 12 | 3 . 3 . . 4 12 2 4 1 5 4 . Penetration Max 1 | . . . . . . 1 . 1 . 1 1 . Secondary Targets 5 | . . 1 . . . . . 2 . 1 1 . Max Gunslinging Chain 1 | . . 1 . . . . . 1 . 1 1 . Shots Hit Robots 286 | 7 . 30 . . 9 70 12 42 5 79 32 . Core Hits 142 | 3 . 8 . . 8 43 3 23 1 31 22 . Critical Kills 5 | . . . . . . 2 . 1 . 2 . . Critical Parts Destroyed 5 | . . 1 . . . 1 . 1 . 2 . . Critical Strikes 18 | . . 1 . . 1 8 1 2 . 5 . . Burn 4 | . . . . . 1 2 1 . . . . . Meltdown 1 | . . . . . . 1 . . . . . . Destroy 5 | . . 1 . . . . . 2 . 2 . . Blast 3 | . . . . . . 3 . . . . . . Smash 4 | . . . . . . 2 . . . 2 . . Sever 1 | . . . . . . . . . . 1 . . Melee Attacks 36 | . . . . . . 10 1 1 . 24 . . Impact 36 | . . . . . . 10 1 1 . 24 . . Slashing . | . . . . . . . . . . . . . Piercing . | . . . . . . . . . . . . . Sneak Attacks 1 | . . . . . . 1 . . . . . . Combat Hostiles . | . . . . . . . . . . . . . Follow-up Attacks . | . . . . . . . . . . . . . Damage Inflicted 9085 | 82 . 665 . . 480 2806 400 1359 396 2187 696 14 Guns 4094 | 82 . 291 . . 56 1109 191 855 42 1080 388 . Cannons 2569 | . . 55 . . 65 1287 81 504 37 240 300 . Explosions 1441 | . . 319 . . 359 242 62 . 231 228 . . Melee 677 | . . . . . . 168 66 . . 443 . . Ramming 22 | . . . . . . . . . . . 8 14 Kinetic 5838 | 82 . 610 . . 307 1787 45 1187 79 1320 421 . Thermal 975 | . . 55 . . 121 543 211 45 . . . . Explosive 459 | . . . . . . . . . 231 228 . . Electromagnetic 832 | . . . . . 52 308 78 127 . . 267 . Impact 677 | . . . . . . 168 66 . . 443 . . Slashing 282 | . . . . . . . . . 86 196 . . Piercing . | . . . . . . . . . . . . . Highest Corruption 21 | . . . . . 2 6 6 21 21 7 9 11 Average Corruption 9 | . . . . . 1 3 6 20 21 7 4 9 Corruption Purged . | . . . . . . . . . . . . . Corruption Blocked . | . . . . . . . . . . . . . Effects 110 | . . . . . 2 19 15 46 1 20 1 6 Message Errors 26 | . . . . . . 3 5 11 . 7 . . Matter Fused 26 | . . . . . 2 3 3 8 . 7 1 2 Heat Flow Errors 14 | . . . . . . 3 2 6 . 2 . 1 Energy Discharges 10 | . . . . . . 1 2 4 . 1 . 2 Parts Rejected 1 | . . . . . . 1 . . . . . . Data Loss (minor) 16 | . . . . . . 4 1 9 1 1 . . Data Loss (major) 2 | . . . . . . . . 1 . . . 1 Misfires 7 | . . . . . . 2 1 3 . 1 . . Alerts 1 | . . . . . . . . . . 1 . . Weapon Failures 7 | . . . . . . 2 1 4 . . . . Overload Shots . | . . . . . . . . . . . . . Overflow Damage 515 | . . 79 . . 26 130 . 33 26 221 . . Projectiles 120 | . . . . . . 65 . 33 . 22 . . Explosions 183 | . . 79 . . 26 . . . 26 52 . . Melee 212 | . . . . . . 65 . . . 147 . . Knockbacks 26 | . . . . . . 3 . 7 1 10 5 . Impact 1 | . . . . . . . . . . 1 . . Kinetic 23 | . . . . . . 3 . 6 1 8 5 . Secondary 2 | . . . . . . . . 1 . 1 . . Self-Inflicted Damage 151 | . . 74 . . 44 26 . . . . . 7 Shots 4 | . . 2 . . 1 1 . . . . . . Rammed 1 | . . . . . . . . . . . . 1 Targets Rammed 2 | . . . . . . . . . . . 1 1 Kicked 1 | . . . . . . . . . . . 1 . Crushed . | . . . . . . . . . . . . . Highest Temperature 600 | . . 12 . . 318 577 600 480 347 219 421 79 Average Temperature 151 | . . 9 . . 131 195 196 133 111 41 156 57 Received Heat Transfer 1703 | . . 156 . . 12 261 36 608 13 392 75 150 Effects 43 | . . . . . . 35 5 2 . . 1 . Shutdowns 14 | . . . . . . 10 3 1 . . . . Energy Bleed 4 | . . . . . . 3 1 . . . . . Interference 17 | . . . . . . 17 . . . . . . Matter Decay 2 | . . . . . . 1 . . . . 1 . Short Circuit 3 | . . . . . . 2 . 1 . . . . Damage (minor) 3 | . . . . . . 2 1 . . . . . Siege Activations . | . . . . . . . . . . . . . Martial Activations . | . . . . . . . . . . . . . Shielding Activations . | . . . . . . . . . . . . . Robots Disrupted . | . . . . . . . . . . . . . Combat Hostiles . | . . . . . . . . . . . . . Robots Corrupted 1 | . . . . . . . . . . 1 . . Combat Hostiles 1 | . . . . . . . . . . 1 . . Parts Fried 3 | . . . . . . 1 . . . 1 1 . Impact Corruptions 7 | . . . . . . 2 . . . 5 . . Robots Melted 2 | . . . . . . 1 1 . . . . . Combat Hostiles 2 | . . . . . . 1 1 . . . . . Parts Melted 7 | . . . . . 3 4 . . . . . . Heat Transferred 2157 | . . 74 . . 274 1298 411 100 . . . . Parts Sabotaged 1 | . . . . . . . . . 1 . . . Parts Stolen . | . . . . . . . . . . . . . Parts Stripped . | . . . . . . . . . . . . . Power Chain Reactions 1 | . . . . . . . 1 . . . . . Alert | -11 -10 -10 -8 -8 -6 -5 -5 -5 -5 -4 -4 -4 ------- Run | Yrd Mat Sub Rec Scr Fac Fac Upp Upp War Pro Fac Upp Maximum Alert Level 2 | . . . . . . 2 . . . . . . Low Security (%) 87 | 100 100 . 100 . 100 74 . . . . 100 . Level 1 11 | . . . . . . 22 . . . . . . Level 2 1 | . . . . . . 2 . . . . . . Level 3 . | . . . . . . . . . . . . . Level 4 . | . . . . . . . . . . . . . Level 5 . | . . . . . . . . . . . . . High Security . | . . . . . . . . . . . . . Max Security . | . . . . . . . . . . . . . Peak Influence 435 | 5 . . 48 . 85 435 . . . . 150 . Initial 150 | . . . 48 . . 9 . . . . 150 . Average 95 | . . . 29 . 25 159 . . . . 74 . Influence Increases 2515 | 15 . 120 . . 156 943 90 225 195 345 246 180 Destroy 0b10 Robot/C 1000 | . . 60 . . 60 380 80 140 . 220 60 . Destroy 0b10 Robot/NC 50 | 15 . . . . 5 25 . . . . 5 . Destroy Leader 156 | . . . . . 20 94 . 10 . 20 12 . Allied During Kill 10 | . . . . . . . 10 . . . . . Successful Hack 23 | . . . . . . 23 . . . . . . Disable Machine 105 | . . . . . 15 90 . . . . . . Destroy Structure 286 | . . . . . 56 226 . . . . 4 . Advance Influence 150 | . . . . . . . . . . . 150 . Lose Combat Pursuer 735 | . . 60 . . . 105 . 75 195 105 15 180 Influence Decreases 2390 | 15 . 18 94 8 135 529 462 288 52 488 246 55 Entered New Map 392 | . . . 54 8 . 12 162 13 . 143 . . Time Decay 1662 | 15 . 18 40 . 125 457 270 225 42 275 160 35 Lost Part 316 | . . . . . 10 60 10 50 10 70 86 20 Lost Ally 20 | . . . . . . . 20 . . . . . Squads Dispatched 12 | . 1 . . . 3 5 . . . . 3 . Investigation 4 | . 1 . . . 2 1 . . . . . . Extermination 3 | . . . . . . 2 . . . . 1 . Reinforcement 5 | . . . . . 1 2 . . . . 2 . Assault . | . . . . . . . . . . . . . Garrison . | . . . . . . . . . . . . . Intercept . | . . . . . . . . . . . . . Searches Triggered . | . . . . . . . . . . . . . Construction Impeded 1 | . . . . . 1 . . . . . . . Haulers Reinforced . | . . . . . . . . . . . . . Active Scanning Responses . | . . . . . . . . . . . . . Cargo Convoy Interrupts 1 | . . . . . . 1 . . . . . . Stealth | -11 -10 -10 -8 -8 -6 -5 -5 -5 -5 -4 -4 -4 --------- Run | Yrd Mat Sub Rec Scr Fac Fac Upp Upp War Pro Fac Upp Distress Signals 4 | . . . . . 1 3 . . . . . . Communications Jammed . | . . . . . . . . . . . . . Distress Signals . | . . . . . . . . . . . . . Times Spotted 132 | . . 13 . . 5 36 3 16 11 21 11 16 Peak Tracking Total 15 | . . 4 . . 2 8 1 5 15 4 5 10 Tactical Retreats 28 | . . 5 . . . 6 . 4 4 5 1 3 Traps | -11 -10 -10 -8 -8 -6 -5 -5 -5 -5 -4 -4 -4 ------- Run | Yrd Mat Sub Rec Scr Fac Fac Upp Upp War Pro Fac Upp Traps Triggered 9 | . . 3 . . 2 3 . . 1 . . . Indirectly . | . . . . . . . . . . . . . Trap Hack Attempts . | . . . . . . . . . . . . . Triggered . | . . . . . . . . . . . . . Disarmed . | . . . . . . . . . . . . . Reprogrammed . | . . . . . . . . . . . . . Reused . | . . . . . . . . . . . . . Traps Extracted . | . . . . . . . . . . . . . Installed . | . . . . . . . . . . . . . Triggered . | . . . . . . . . . . . . . Machines | -11 -10 -10 -8 -8 -6 -5 -5 -5 -5 -4 -4 -4 ---------- Run | Yrd Mat Sub Rec Scr Fac Fac Upp Upp War Pro Fac Upp Machines Disabled 12 | . . 4 . . 1 6 . . 1 . . . Max in Single Turn 4 | . . 3 . . 1 4 . . 1 . . . Garrison Access 2 | . . . . . . 2 . . . . . . Machines Repaired . | . . . . . . . . . . . . . Machines Dismantled 1 | . . . . . . . . . 1 . . . Machines Sabotaged . | . . . . . . . . . . . . . Overloaded Fab Kills . | . . . . . . . . . . . . . Hacking | -11 -10 -10 -8 -8 -6 -5 -5 -5 -5 -4 -4 -4 --------- Run | Yrd Mat Sub Rec Scr Fac Fac Upp Upp War Pro Fac Upp Machines Accessed 20 | . . 2 . 3 4 6 2 . 3 . . . Terminals 3 | . . . . . 1 2 . . . . . . Fabricators 1 | . . . . . 1 . . . . . . . Repair Stations . | . . . . . . . . . . . . . Recycling Units 3 | . . . . . 2 1 . . . . . . Scanalyzers 1 | . . . . . . 1 . . . . . . Garrison Access 2 | . . . . . . 2 . . . . . . Total Hacks 41 | . . 5 . 9 5 9 8 . 5 . . . Successful 36 | . . 5 . 9 3 6 8 . 5 . . . Failed 4 | . . . . . 2 2 . . . . . . Catastrophic 1 | . . . . . . 1 . . . . . . Database Lockouts 1 | . . . . . . 1 . . . . . . Manual 7 | . . . . . 4 3 . . . . . . Terminals 4 | . . . . . 2 2 . . . . . . Fabricators 1 | . . . . . 1 . . . . . . . Repair Stations . | . . . . . . . . . . . . . Recycling Units 3 | . . . . . 2 1 . . . . . . Scanalyzers 2 | . . . . . . 2 . . . . . . Garrison Access 4 | . . . . . . 4 . . . . . . Terminal Hacks 30 | . . 5 . 9 1 2 8 . 5 . . . Record 19 | . . 4 . 4 . . 7 . 4 . . . Robot Analysis 5 | . . . . 5 . . . . . . . . Open Door 2 | . . . . . . . 1 . 1 . . . Branch Access Points 1 | . . . . . . 1 . . . . . . Recycling Unit Index 1 | . . . . . . 1 . . . . . . Recall Reinforcements 1 | . . . . . 1 . . . . . . . Proto ID Catalog 1 | . . 1 . . . . . . . . . . Fabricator Hacks . | . . . . . . . . . . . . . Repair Station Hacks . | . . . . . . . . . . . . . Recycling Unit Hacks . | . . . . . . . . . . . . . Scanalyzer 1 | . . . . . . 1 . . . . . . Retrieve Study 1 | . . . . . . 1 . . . . . . Garrison Access Hacks 2 | . . . . . . 2 . . . . . . Seal Access 2 | . . . . . . 2 . . . . . . Unauthorized Hacks 3 | . . . . . 2 1 . . . . . . Terminals . | . . . . . . . . . . . . . Fabricators . | . . . . . . . . . . . . . Repair Stations . | . . . . . . . . . . . . . Recycling Units 3 | . . . . . 2 1 . . . . . . Fedlink 3 | . . . . . 2 1 . . . . . . Scanalyzers . | . . . . . . . . . . . . . Garrison Access . | . . . . . . . . . . . . . Data Cores Recovered 1 | . 1 . . . . . . . . . . . Used . | . . . . . . . . . . . . . Hacking Detections 1 | . . . . . 1 . . . . . . . Full Trace Events . | . . . . . . . . . . . . . Feedback Events . | . . . . . . . . . . . . . Feedback Blocked . | . . . . . . . . . . . . . Robot Schematics Acquired . | . . . . . . . . . . . . . Robots Built . | . . . . . . . . . . . . . Authchips . | . . . . . . . . . . . . . Time . | . . . . . . . . . . . . . Total Robot Build Rating . | . . . . . . . . . . . . . Part Schematics Acquired . | . . . . . . . . . . . . . Parts Built . | . . . . . . . . . . . . . Authchips . | . . . . . . . . . . . . . Time . | . . . . . . . . . . . . . Total Part Build Rating . | . . . . . . . . . . . . . Part Studies Acquired 1 | . . . . . . 1 . . . . . . Parts Repaired . | . . . . . . . . . . . . . Time . | . . . . . . . . . . . . . Parts Recycled . | . . . . . . . . . . . . . Recycled Matter . | . . . . . . . . . . . . . Retrieved Matter . | . . . . . . . . . . . . . Retrieved Components . | . . . . . . . . . . . . . Parts Scanalyzed . | . . . . . . . . . . . . . Part Schematics Acquired . | . . . . . . . . . . . . . Parts Damaged . | . . . . . . . . . . . . . Bothacking | -11 -10 -10 -8 -8 -6 -5 -5 -5 -5 -4 -4 -4 ------------ Run | Yrd Mat Sub Rec Scr Fac Fac Upp Upp War Pro Fac Upp Used RIF Installer . | . . . . . . . . . . . . . Robots Hacked . | . . . . . . . . . . . . . Non-combat . | . . . . . . . . . . . . . Combat . | . . . . . . . . . . . . . Robot Hacks Applied . | . . . . . . . . . . . . . Relay Couplers Released . | . . . . . . . . . . . . . Fabnet Peak Effective % . | . . . . . . . . . . . . . Robots Rewired . | . . . . . . . . . . . . . Allies Hacked . | . . . . . . . . . . . . . Hacks Repelled . | . . . . . . . . . . . . . Allies | -11 -10 -10 -8 -8 -6 -5 -5 -5 -5 -4 -4 -4 -------- Run | Yrd Mat Sub Rec Scr Fac Fac Upp Upp War Pro Fac Upp Total Allies 2 | . . . . . . . 2 . . . . . Largest Group 2 | . . . . . . . 2 . . . . . Highest-Rated Group 51 | . . . . . . . 51 . . . . . Highest-Rated Ally 31 | . . . . . . . 31 . . . . . Initial UFD Resources 53 | . . . . . 22 40 50 50 50 53 53 53 Total Orders . | . . . . . . . . . . . . . Ally Attacks 13 | . . . . . . . 13 . . . . . Total Damage 255 | . . . . . . . 255 . . . . . Kills 2 | . . . . . . . 2 . . . . . Allies Corrupted . | . . . . . . . . . . . . . Allies Melted . | . . . . . . . . . . . . . Intel | -11 -10 -10 -8 -8 -6 -5 -5 -5 -5 -4 -4 -4 ------- Run | Yrd Mat Sub Rec Scr Fac Fac Upp Upp War Pro Fac Upp Active Infowar (turns) 6639 | 81 221 1791 90 1741 388 1026 . 537 439 . 253 72 Terrain 2230 | 2 . . . . . 1016 . 537 439 . 236 . Seismic 5232 | 79 221 1791 90 1741 388 922 . . . . . . Decoding 130 | . . . . . . . . . . . 58 72 Robot Analysis Total 5 | . . . . 5 . . . . . . . . Derelict Logs Recovered 7 | . . . . 2 . . 1 2 . 1 . 1 Drone Launches 3 | . . . . . . . . . . . . 3 Drone Recoveries 1 | . . . . . . . . . . . . 1 Decoded 0b10 Intel 4 | . . . . . . . . . . . 4 . Items 4 | . . . . . . . . . . . 4 . Exploration | -11 -10 -10 -8 -8 -6 -5 -5 -5 -5 -4 -4 -4 ------------- Run | Yrd Mat Sub Rec Scr Fac Fac Upp Upp War Pro Fac Upp Turns Passed 9889 | 168 221 1791 90 1741 388 1226 585 874 1087 1237 363 118 Spaces Moved 6926 | 85 135 1097 76 1198 364 1021 546 617 751 618 190 228 Core 271 | 5 . 10 . . . . . . . . 28 228 Treads 1027 | 80 135 812 . . . . . . . . . . Legs 2140 | . . . . . . . . 609 751 618 162 . Wheels 3488 | . . 275 76 1198 364 1021 546 8 . . . . Hover . | . . . . . . . . . . . . . Flight . | . . . . . . . . . . . . . Fastest Speed 50 | 50 160 120 120 120 90 90 95 95 112 105 50 50 Average Speed 128 | 153 160 153 120 144 93 96 95 121 137 160 156 50 Slowest Speed 450 | 160 160 450 120 165 95 100 95 186 187 250 176 50 Overloaded Moves . | . . . . . . . . . . . . . Propulsion Burnouts . | . . . . . . . . . . . . . Robots Hopped . | . . . . . . . . . . . . . Potential Cave-ins . | . . . . . . . . . . . . . Cave-ins Triggered . | . . . . . . . . . . . . . Exploration Rate (%) 43 | 5 36 59 22 80 10 29 62 80 79 64 4 34 Regions Visited 12 Branch Regions 8 Pre-discovered Areas 3 | . . . . . 1 . 2 . . . . . Known Exits Taken 3 | . . . . . . 1 1 . . . 1 . Unknown Exits Taken 9 | 1 1 1 1 1 1 . . 1 1 1 . . Scrap Searched 14 | . . 2 . 3 . . 3 2 . 3 . 1 Spaces Dug 12 | . . . . . . 4 . 8 . . . . Terrain Destroyed 474 | . . 74 . . 63 139 11 32 66 87 2 . Melee 5 | . . . . . . 4 . 1 . . . . Projectile 61 | . . 1 . . 3 21 . 31 1 2 2 . AOE 408 | . . 73 . . 60 114 11 . 65 85 . . Terrain Rammed . | . . . . . . . . . . . . . Walls Destroyed . | . . . . . . . . . . . . . Machines Disabled . | . . . . . . . . . . . . . Actions | -11 -10 -10 -8 -8 -6 -5 -5 -5 -5 -4 -4 -4 --------- Run | Yrd Mat Sub Rec Scr Fac Fac Upp Upp War Pro Fac Upp Total 7486 | 103 140 1154 75 1214 395 1156 600 671 790 733 223 232 Wait 153 | . 6 24 . . 6 39 45 11 6 11 3 2 Move 6914 | 84 134 1096 75 1197 363 1020 545 616 750 617 189 228 Hop . | . . . . . . . . . . . . . Pick Up 44 | 2 . 3 . 8 . 14 3 . 10 . 4 . Fast Attach 37 | 8 . 3 . 2 1 8 . 4 2 7 2 . Attach 38 | . . 1 . . 4 10 1 6 2 8 5 1 Detach 15 | 1 . . . 2 1 6 . 1 2 . 2 . Swap 10 | . . . . 2 . 2 . . 5 . 1 . Drop 18 | . . 2 . 3 . 6 1 1 3 . 2 . Fire 198 | 8 . 25 . . 7 41 4 31 2 66 14 . Melee 36 | . . . . . . 10 1 1 . 24 . . Ram 1 | . . . . . . . . . . . . 1 Kick 1 | . . . . . . . . . . . 1 . Crush . | . . . . . . . . . . . . . Escape Stasis 13 | . . . . . 13 . . . . . . . Rewire . | . . . . . . . . . . . . . Trap . | . . . . . . . . . . . . . Miscellaneous 8 | . . . . . . . . . 8 . . . Route ------- -11/Scrapyard -10/Materials (discovered 3 exits: [*Mat] / [*Min] / *Sub) -10/Subcaves -8/Recycling -8/Scraptown (discovered 2 exits: *Fac x2) -6/Factory -5/Factory (discovered 4 exits: *Upp x2 / Ext x2) -5/Upper Caves -5/Upper Caves (discovered 2 exits: [*Fac] / *War) -5/Warlord -4/Proximity Caves -4/Factory -4/Upper Caves History --------- Turn | Location | Event 30 | -11/Scrapyard | Discovered new exit (range 16) 169 | -11/Scrapyard | Entered Materials 170 | -10/Materials | Met a group of wandering Federalists 303 | -10/Materials | Build established: Mutant 307 | -10/Materials | Discovered new exit (range 11) 372 | -10/Materials | Discovered new exit (range 10) 382 | -10/Materials | Discovered new exit (range 8) 390 | -10/Materials | Entered Subcaves 391 | -10/Subcaves | Continued accompanying wandering Federalists (6) 430 | -10/Subcaves | A Subdweller sparked back to life 430 | -10/Subcaves | A Subdweller sparked back to life 430 | -10/Subcaves | A Subdweller sparked back to life 466 | -10/Subcaves | Lost 6 allies 496 | -10/Subcaves | Shifting Twisted Machinery released Sub. Monowheel 507 | -10/Subcaves | Shifting Twisted Machinery released Sub. Monowheel 696 | -10/Subcaves | Found Prototype Wheel 870 | -10/Subcaves | Ambushed by Subdwellers from Twisted Machinery 923 | -10/Subcaves | Core integrity fell below 50% 955 | -10/Subcaves | Lost 3 parts (1p1n1w) 1295 | -10/Subcaves | Visited 4L-MR0's lab 1310 | -10/Subcaves | Identified Maxwheels 1316 | -10/Subcaves | Found Arachnoskeleton 1527 | -10/Subcaves | Visited Clippyterm 1531 | -10/Subcaves | Learned Factory fabricator intel 1531 | -10/Subcaves | Learned Research security intel 1775 | -10/Subcaves | Disturbed a concealed Subdweller 1794 | -10/Subcaves | Ambushed by Subdweller buried in earth 2162 | -10/Subcaves | Discovered new exit (range 10) 2181 | -10/Subcaves | Entered Recycling 2182 | -8/Recycling | Met a Zionite searching for Scraptown 2239 | -8/Recycling | Scanned before Scraplab entrance 2257 | -8/Recycling | Entered Scraplab 2267 | -8/Recycling | Discovered new exit (range 4) 2271 | -8/Recycling | Entered Scraptown 2574 | -8/Scraptown | Visited CPS Storage 2604 | -8/Scraptown | Visited Cave Peace 2631 | -8/Scraptown | Visited Comm Corps 2663 | -8/Scraptown | Scanned Subdweller tech in exchange for log data 2666 | -8/Scraptown | Learned location of 1 exit from Upper Caves 2667 | -8/Scraptown | Learned Factory non-interactive machine intel 2686 | -8/Scraptown | Discovered new exit (range 11) 2874 | -8/Scraptown | Visited Shadow of the Wyrm 2894 | -8/Scraptown | Visited Awakened 2930 | -8/Scraptown | Visited Cyclists 2942 | -8/Scraptown | Visited Red Mages 2987 | -8/Scraptown | Visited UFD Registry 2989 | -8/Scraptown | Registered with UFD as "Kinetiripper" 3050 | -8/Scraptown | Visited Scrapoid Pod Storage 3099 | -8/Scraptown | Visited Abandonware Association 3129 | -8/Scraptown | Visited Supply Room 3177 | -8/Scraptown | Visited Cartography Club 3228 | -8/Scraptown | Found Surveybot 17 Chip 3354 | -8/Scraptown | Visited Research Penetration Think Tank 3392 | -8/Scraptown | Visited Analyses Database 3429 | -8/Scraptown | Visited Scrap Suit Storage 3441 | -8/Scraptown | Found Scrap Suit 3488 | -8/Scraptown | Visited Derelict Rescue Squad 3528 | -8/Scraptown | Visited DA-N13 Charitable Foundation 3539 | -8/Scraptown | Found DCF Scrap (28 items) 3604 | -8/Scraptown | Visited Curators Association 3905 | -8/Scraptown | Met Optimus 3905 | -8/Scraptown | Accepted into 0bPrime 4002 | -8/Scraptown | Discovered new exit (range 5) 4012 | -8/Scraptown | Entered Factory 4012 | -6/Factory | Evolved 8 slots: Propulsion x2, Utility x4, Weapon x2 4013 | -6/Factory | Loaded intel: 246 non-interactive machine locations 4014 | -6/Factory | Loaded intel: 6 fabricator locations 4014 | -6/Factory | Attached Maxwheels, gained temporary slots: Weapon x2 4057 | -6/Factory | Loaded intel: 8 recycling unit locations 4250 | -6/Factory | Learned location of Protoforge (-3) 4365 | -6/Factory | Spotted B-75 Beast 4389 | -6/Factory | Build established: Tank 4393 | -6/Factory | Discovered new exit (range 8) 4400 | -6/Factory | Entered another Factory area 4400 | -5/Factory | Evolved 2 slots: Power x1, Utility x1 4438 | -5/Factory | Spotted B-75 Beast 4622 | -5/Factory | Central database locked down 5092 | -5/Factory | Build established: Executioner 5178 | -5/Factory | Loaded intel: 8 recycling unit locations 5498 | -5/Factory | Cargo convoy interrupted 5522 | -5/Factory | Found Prototype Reactor 5564 | -5/Factory | Identified Zero-point Reactor 5608 | -5/Factory | Identified exit to Upper Caves 5608 | -5/Factory | Identified exit to Extension 5626 | -5/Factory | Entered Upper Caves 5627 | -5/Upper Caves | Identified exit to Upper Caves 5781 | -5/Upper Caves | Entered an active Warlord outpost 5805 | -5/Upper Caves | A Commander dispatched an escort 5813 | -5/Upper Caves | Learned location of Extension (-5) 5813 | -5/Upper Caves | Learned Research stockpile data 5813 | -5/Upper Caves | Learned Research security intel 5813 | -5/Upper Caves | Learned Extension garrison access intel 5867 | -5/Upper Caves | Learned location of Armory (-3) 6211 | -5/Upper Caves | Entered another Upper Caves area 6211 | -5/Upper Caves | Accompanied by 1 ally 6213 | -5/Upper Caves | Commander's escort returned to base 6231 | -5/Upper Caves | Attached Arachnoskeleton, gained temporary slots: Propulsion x3 6247 | -5/Upper Caves | System corruption reached 10% 6476 | -5/Upper Caves | Spotted B-75 Beast 6497 | -5/Upper Caves | Discovered new exit (range 15) 6722 | -5/Upper Caves | Build established: Scavenger-Mutant 6879 | -5/Upper Caves | Ambushed by wild Derelicts 7036 | -5/Upper Caves | Discovered new exit (range 13) 7042 | -5/Upper Caves | Learned Factory non-interactive machine intel 7085 | -5/Upper Caves | Entered Warlord 7125 | -5/Warlord | System corruption cleaned by Quarantine Array 7207 | -5/Warlord | Build established: Scavenger-Skirmisher 7247 | -5/Warlord | Found Prototype Device 7248 | -5/Warlord | Identified Minesniffer Drone Bay 7430 | -5/Warlord | Found Prototype Special Weapon 7432 | -5/Warlord | Found Prototype Special Weapon 7506 | -5/Warlord | Found Prototype Reactor 7523 | -5/Warlord | Found Prototype Device 7524 | -5/Warlord | Identified Exp. Phase Shifter 7537 | -5/Warlord | Found Prototype Device 7537 | -5/Warlord | Identified Exp. Focal Shield 7663 | -5/Warlord | Rebuked by Warlord 7688 | -5/Warlord | Warlord's base attacked by MAIN.C 7808 | -5/Warlord | Build established: Tank 7973 | -5/Warlord | Opened side exit 8035 | -5/Warlord | Spotted Striker 8035 | -5/Warlord | Spotted Executioner 8038 | -5/Warlord | Warlord forces counterattacked 8059 | -5/Warlord | Identified RU-N14's Throwing Claymores v3 (x2) 8161 | -5/Warlord | Discovered new exit (range 12) 8172 | -5/Warlord | Entered Proximity Caves 8178 | -4/Proximity Caves | Attracted the attention of an 0b10 checkpoint 8340 | -4/Proximity Caves | Build established: Mutant 8361 | -4/Proximity Caves | Lost 4 parts (1p1n1u1w) 8675 | -4/Proximity Caves | Spotter reported a threat 8716 | -4/Proximity Caves | Core integrity fell below 50% 8791 | -4/Proximity Caves | Learned Research stockpile data 9034 | -4/Proximity Caves | Lost 3 parts (2n1w) 9127 | -4/Proximity Caves | Identified Vortex Chain Reactor 9265 | -4/Proximity Caves | Discovered new exit (range 10) 9409 | -4/Proximity Caves | Entered Factory 9409 | -4/Factory | Evolved 2 slots: Propulsion x1, Utility x1 9410 | -4/Factory | Identified exit to Upper Caves 9411 | -4/Factory | Loaded intel: 202 non-interactive machine locations 9632 | -4/Factory | Build established: Derelict-Tank 9772 | -4/Factory | Entered Upper Caves 9788 | -4/Upper Caves | Lost 15 parts (1p4n6u4w) 9796 | -4/Upper Caves | Learned Research stockpile data 9829 | -4/Upper Caves | Core integrity fell below 50% 9830 | -4/Upper Caves | Attracted the attention of an 0b10 outpost 9843 | -4/Upper Caves | System corruption reached 10% 9845 | -4/Upper Caves | Core integrity fell below 20% 9880 | -4/Upper Caves | Attracted the attention of an 0b10 checkpoint 9890 | -4/Upper Caves | Destroyed by G-67 Veteran with Plasma Rifle Last Messages --------------- DERELICT." 09831_ Slug penetrates Wall. 09834_ Y-72 Warden: "REQUESTING BACKUP." 09834_ Penetrated by Slug. 09834_ Slug penetrates Wall. 09842_ System corrupted: Matter fused (-7). 09842_ Slammed into G-73 Enforcer. 09842_ Surveybot 17 Chip destroyed. 09842_ System corrupted by crushing effect (+2). 09844_ 0b10 Decoder Chip [Looter] destroyed. 09851_ Acquired 34 matter. 09863_ System corrupted: Energy discharge (-25). 09879_ Slug penetrates Wall. 09880_ Y-64 Sentinel: "INTERCEPTING UNREGISTERED DERELICT." 09882_ System corrupted: Energy discharge (-39). 09887_ Mapping Drone released from Mapping Drone Bay. 09889_ Mapping Drone retrieved by Mapping Drone Bay (no repairs). Map ----- +----------------------------------------------------+ | | | | | | | | | | | ???????????????????#???????????#?#?#?????????????? | | ???????????????????#?????????????????????????????? | | ???????????????????#?#??#????#???????????????????? | | ??????????????????#?????#????????????????????????? | | ???????????????????????#??#?????????#????????????? | | ????????????????????????????#????????????????????? | | ??????????#?????????#??????##????????????????????? | | ?????????????????????????#?????????#?#???????????? | | ???????????#????????#?#????????#?????????????????? | | ????????????????#???????????????????????#????????? | | ????????????????#????????????##??????????????????? | | ??????????????????#????##?????#????????#?????????? | | ?????????????????????????#????????????????#??????? | | ????????????????#?#??????????#???????????##?#????? | | ????????#???????????#??########?#??????????#?????? | | ?????????????????????#?# #;#???#??????????????? | | ???????????????????????## #??#????#???????????? | | ????????????????????????##s #?????#?????????????? | | ????????????????????????## #???????????#???????? | | ????????????? ??????## #?????????#???#?#???? | | ???????????? ###### @ ####????#????#??????? | | ???????????? n ##??#???#??????????? | | ???????????? Yg #?????????????????? | | ???????????? n #???????#??##?????? | | ???????????## #?????????????????? | | ????????????# ## #?#???????????????? | | ???????????## ## ## #??#??????????????? | | ????????????????# #?# #?#??????#????????? | | ???????????????#### ####??# ###??????????#??????? | | ?????????????????# ??????# #???????????????????? | | ????????????? ???# ???????# #???????????????????? | | ???????????????? ???????## #???????????????????? | | ???????????????? ?#??????# ##??????????????????? | | ???????????????????# ? ???# ##??????????????????? | | ???????????????????# ??#### #?????????#?????????? | | ??????????????????## ??# #???????????????????? | | ????????????????### ?# #??????#????????????? | | ???????????????## ?# ####???????????????????? | | ?????????????### ## #??????????????????????? | | ?????????????# #??????????????????????? | | ?????????????# #??????????????????????? | | ?????????????# " "" #??????????????????????? | | ?????????????# "" """" #??????????????????????? | | ?????????????# "" """ #??????????????????????? | | ?????????????# " " ####???????????????????? | +----------------------------------------------------+ Best States ------------- Heat Dissipation 62 Energy Generation 55 Energy Capacity 1050 Matter Stores 300 Matter Capacity 300 Sight Range 16 Terrain Scan Range 16 Terrain Scan Density 1210 Armor Coverage 600 Resistance: KI 30 Phase Shifting 20 Evasion (%) 75 Targeting Accuracy 8 Recoil Reduction 2 Item Schematics ----------------- None Robot Schematics ------------------ None Fabricated ------------ Nothing Repaired ---------- Nothing Studied --------- Fission Core | -5/Factory | Hacked Alien Tech Used ----------------- None Achievements -------------- Short-term Sacrifices Challenges ------------ None Game ------ Seed ShiftCorruptionBotcube Manual? 0 Play Time 01:00:15 Cumulative 132.3 hours Start 2026.07.20 @ 01:19:17 End 2026.07.20 @ 02:19:43 Sessions 1 Manual Loads 0 Difficulty Rogue Special Mode None Game No. 276 Rogue 276 Adventurer 0 Explorer 0 Win Type - Total 1 Types 1/0/0/0/0/0/0/0/0/0 Lore% 54 Gallery% 54 Achievement% 43 Wizard Run 0 Options --------- Layout 2 ASCII 0 Keyboard 1 Movement Arrows Keybinds 0 Fullscreen 1 Font 24/Smallcaps Map View 50x44 Zoom Use 0% Tactical HUD 1 Map Filters NONE Filters NONE Steam 1 RUN: 7f6d358a-72c4-4e20-8568-edd3b9c57293